fUSD/lending_fUSD_20260301
["ID","MTS","AMOUNT","RATE_DAILY","PERIOD"]
[406974300,1772392240840,-500.0,0.00013698,2]
[406974301,1772392240849,-500.0,0.00013698,2]
[406974302,1772392240859,-500.0,0.00013698,2]
[406974303,1772392240873,-500.0,0.00013698,2]
[406974304,1772392240883,-500.0,0.00013698,2]
[406974305,1772392240893,-500.0,0.00013698,2]
[406974306,1772392240903,-500.0,0.00013698,2]
[406974307,1772392240915,-500.0,0.00013698,2]
[406974308,1772392240925,-500.0,0.00013698,2]
[406974309,1772392240935,-500.0,0.00013698,2]
[406974310,1772392240946,-500.0,0.00013698,2]
[406974311,1772392240955,-500.0,0.00013698,2]
[406974312,1772392240964,-500.0,0.00013698,2]
[406974313,1772392240973,-500.0,0.00013698,2]
[406974314,1772392240981,-500.0,0.00013698,2]
[406974315,1772392240990,-500.0,0.00013698,2]
[406974316,1772392240999,-500.0,0.00013698,2]
[406974317,1772392241008,-500.0,0.00013698,2]
[406974318,1772392241017,-500.0,0.00013698,2]
[406974319,1772392241028,-500.0,0.00013698,2]
[406974320,1772392241038,-500.0,0.00013698,2]
[406974321,1772392241049,-500.0,0.00013698,2]
[406974322,1772392241059,-500.0,0.00013698,2]
[406974323,1772392241069,-500.0,0.00013698,2]
[406974324,1772392241079,-500.0,0.00013698,2]
[406974325,1772392241088,-500.0,0.00013698,2]
[406974326,1772392241099,-500.0,0.00013698,2]
[406974327,1772392241108,-500.0,0.00013698,2]
[406974328,1772392241118,-500.0,0.00013698,2]
[406974329,1772392241129,-500.0,0.00013698,2]
[406974330,1772392241139,-500.0,0.00013698,2]
[406974331,1772392241149,-500.0,0.00013698,2]
[406974332,1772392241159,-500.0,0.00013698,2]
[406974333,1772392241168,-500.0,0.00013698,2]
[406974334,1772392241178,-500.0,0.00013698,2]
[406974335,1772392241188,-500.0,0.00013698,2]
[406974336,1772392241197,-500.0,0.00013698,2]
[406974337,1772392241207,-500.0,0.00013698,2]
[406974338,1772392241219,-500.0,0.00013698,2]
[406974339,1772392241229,-500.0,0.00013698,2]
[406974340,1772392241239,-500.0,0.00013698,2]
[406974341,1772392241249,-500.0,0.00013698,2]
[406974342,1772392241259,-386.19326799,0.00013698,2]
[406974343,1772392241269,-500.0,0.00013698,2]
[406974344,1772392241279,-500.0,0.00013698,2]
[406974345,1772392241291,-500.0,0.00013698,2]
[406974346,1772392241302,-500.0,0.00013698,2]
[406974347,1772392241313,-500.0,0.00013698,2]
[406974348,1772392241324,-440.74370174,0.00013698,2]
[406974349,1772392241333,-500.0,0.00013698,2]
[406974350,1772392241343,-500.0,0.00013698,2]
[406974351,1772392241352,-500.0,0.00013698,2]
[406974352,1772392241362,-500.0,0.00013698,2]
[406974353,1772392241372,-500.0,0.00013698,2]
[406974354,1772392241384,-500.0,0.00013698,2]
[406974355,1772392241394,-500.0,0.00013698,2]
[406974356,1772392241404,-500.0,0.00013698,2]
[406974357,1772392241414,-500.0,0.00013698,2]
[406974358,1772392241424,-500.0,0.00013698,2]
[406974359,1772392241434,-500.0,0.00013698,2]
[406974360,1772392241444,-500.0,0.00013698,2]
[406974361,1772392241454,-500.0,0.00013698,2]
[406974362,1772392241463,-500.0,0.00013698,2]
[406974363,1772392241474,-500.0,0.00013698,2]
[406974364,1772392241483,-500.0,0.00013698,2]
[406974365,1772392241493,-500.0,0.00013698,2]
[406974366,1772392241502,-500.0,0.00013698,2]
[406974367,1772392241511,-500.0,0.00013698,2]
[406974368,1772392241521,-162.5481671,0.00013698,2]
[406974369,1772392241530,-500.0,0.00013698,2]
[406974370,1772392241540,-500.0,0.00013698,2]
[406974371,1772392241550,-500.0,0.00013698,2]
[406974372,1772392241560,-500.0,0.00013698,2]
[406974373,1772392241570,-159.80083652,0.00013698,2]
[406974374,1772392241579,-500.0,0.00013698,2]
[406974375,1772392241589,-500.0,0.00013698,2]
[406974376,1772392241599,-500.0,0.00013698,2]
[406974377,1772392241610,-500.0,0.00013698,2]
[406974378,1772392241620,-500.0,0.00013698,2]
[406974379,1772392241630,-500.0,0.00013698,2]
[406974380,1772392241640,-500.0,0.00013698,2]
[406974381,1772392241650,-500.0,0.00013698,2]
[406974382,1772392241661,-500.0,0.00013698,2]
[406974383,1772392241670,-500.0,0.00013698,2]
[406974384,1772392241681,-500.0,0.00013698,2]
[406974385,1772392241691,-500.0,0.00013698,2]
[406974386,1772392241701,-500.0,0.00013698,2]
[406974387,1772392241711,-500.0,0.00013698,2]
[406974388,1772392241721,-500.0,0.00013698,2]
[406974389,1772392241730,-500.0,0.00013698,2]
[406974390,1772392241740,-517.69601113,0.00013698,2]
[406974391,1772392241749,-500.0,0.00013698,2]
[406974392,1772392241759,-500.0,0.00013698,2]
[406974393,1772392241768,-500.0,0.00013698,2]
[406974394,1772392241777,-500.0,0.00013698,2]
[406974395,1772392241787,-500.0,0.00013698,2]
[406974396,1772392241797,-500.0,0.00013698,2]
[406974397,1772392241807,-500.0,0.00013698,2]
[406974398,1772392241816,-500.0,0.00013698,2]
[406974399,1772392241826,-500.0,0.00013698,2]
[406974400,1772392241836,-500.0,0.00013698,2]
[406974401,1772392241845,-454.69204283,0.00013698,2]
[406974402,1772392241855,-500.0,0.00013698,2]
[406974403,1772392241864,-500.0,0.00013698,2]
[406974404,1772392241878,-500.0,0.00013698,2]
[406974405,1772392241887,-405.61,0.00013698,2]
[406974406,1772392241898,-500.0,0.00013698,2]
[406974407,1772392241907,-500.0,0.00013698,2]
[406974408,1772392241917,-500.0,0.00013698,2]
[406974409,1772392241925,-500.0,0.00013698,2]
[406974410,1772392241934,-500.0,0.00013698,2]
[406974411,1772392241945,-500.0,0.00013698,2]
[406974412,1772392241954,-500.0,0.00013698,2]
[406974413,1772392241963,-500.0,0.00013698,2]
[406974414,1772392241972,-500.0,0.00013698,2]
[406974415,1772392241981,-500.0,0.00013698,2]
[406974416,1772392242001,-500.0,0.00013698,2]
[406974417,1772392242012,-500.0,0.00013698,2]
[406974418,1772392242023,-500.0,0.00013698,2]
[406974419,1772392242033,-500.0,0.00013698,2]
[406974420,1772392242043,-500.0,0.00013698,2]
[406974421,1772392242053,-500.0,0.00013698,2]
[406974422,1772392242063,-500.0,0.00013698,2]
[406974423,1772392242073,-500.0,0.00013698,2]
[406974424,1772392242083,-500.0,0.00013698,2]
[406974425,1772392242092,-500.0,0.00013698,2]
[406974426,1772392242102,-500.0,0.00013698,2]
[406974427,1772392242112,-500.0,0.00013698,2]
[406974428,1772392242122,-500.0,0.00013698,2]
[406974429,1772392242132,-500.0,0.00013698,2]
[406974430,1772392242141,-281.18620333,0.00013698,2]
[406974431,1772392242151,-500.0,0.00013698,2]
[406974432,1772392242161,-500.0,0.00013698,2]
[406974433,1772392242171,-500.0,0.00013698,2]
[406974434,1772392242181,-500.0,0.00013698,2]
[406974435,1772392242191,-500.0,0.00013698,2]
[406974436,1772392242202,-500.0,0.00013698,2]
[406974437,1772392242211,-500.0,0.00013698,2]
[406974438,1772392242221,-500.0,0.00013698,2]
[406974439,1772392242231,-500.0,0.00013698,2]
[406974440,1772392242240,-500.0,0.00013698,2]
[406974441,1772392242250,-500.0,0.00013698,2]
[406974442,1772392242260,-500.0,0.00013698,2]
[406974443,1772392242269,-391.70323882,0.00013698,2]
[406974445,1772392242279,-151.0,0.00013698,2]
[406974447,1772392242288,-151.0,0.00013698,2]
[406974449,1772392242300,-151.0,0.00013698,2]
[406974452,1772392242310,-200.0,0.00013699,2]
[406974454,1772392242320,-210.84861,0.00013699,2]
[406974456,1772392242332,-151.0,0.00013699,2]
[406974458,1772392242343,-151.0,0.00013699,2]
[406974460,1772392242353,-152.0,0.00013699,2]
[406974461,1772392242363,-152.0,0.00013699,2]
[406974462,1772392242373,-159.06023003,0.00013699,2]
[406974463,1772392242384,-152.0,0.00013699,2]
[406974464,1772392242394,-155.0,0.00013716,2]
[406974466,1772392242404,-166.66,0.00013785,2]
[406974468,1772392242414,-930.0,0.000138,2]
[406974470,1772392242425,-363.21554741,0.00013885,2]
[406974472,1772392242435,-1146.99550728,0.00013973,2]
[406974475,1772392242444,-215.76389777,0.0001401,2]
[406974477,1772392242454,-150.0,0.00014045,2]
[406974479,1772392242463,-256.12,0.00014078,2]
[406974481,1772392242474,-350.0,0.00014094,2]
[406974483,1772392242483,-150.0,0.00014101,2]
[406974485,1772392242493,-516.0,0.0001411,2]
[406974486,1772392242503,-200.0,0.00014137,2]
[406974488,1772392242513,-155.0,0.00014145,2]
[406974489,1772392242523,-829.12830338,0.00014146,2]
[406974490,1772392242532,-194.72792766,0.00014146,2]
[406974491,1772392242542,-287.61899177,0.00014146,2]
[406974492,1772392242553,-1625.3616743,0.00014174,2]
[406974494,1772392242564,-150.0,0.00014201,2]
[406974496,1772392242574,-17924.78435463,0.00014235,2]
[406974498,1772392242583,-166.048908,0.00014258,2]
[406974500,1772392242593,-166.048908,0.00014258,2]
[406974502,1772392242604,-166.048908,0.00014258,2]
[406974504,1772392242747,-166.048908,0.00014258,2]
[406974505,1772392242757,-151.0,0.00014258,2]
[406974506,1772392242766,-786.716127,0.00014258,2]
[406974507,1772392242775,-786.716127,0.00014258,2]
[406974508,1772392242785,-786.716127,0.00014258,2]
[406974509,1772392242795,-786.716127,0.00014258,2]
[406974510,1772392242805,-668.216594,0.00014258,2]
[406974511,1772392242815,-668.216594,0.00014258,2]
[406974512,1772392242824,-668.216594,0.00014258,2]
[406974513,1772392242834,-668.216594,0.00014258,2]
[406974514,1772392242845,-151.0,0.00014258,2]
[406974515,1772392242854,-151.0,0.00014258,2]
[406974516,1772392242870,-208.23138,0.00014258,2]
[406974517,1772392242882,-151.0,0.00014258,2]
[406974518,1772392242892,-7789.46,0.00014258,2]
[406974519,1772392242903,-166.66,0.00014291,2]
[406974521,1772392242914,-250.0,0.00014345,2]
[406974523,1772392242924,-350.0,0.00014348,2]
[406974525,1772392242933,-993.0,0.000144,2]
[406974527,1772392242943,-921.0,0.00014449,2]
[406974528,1772392242954,-1211.0,0.00014449,2]
[406974529,1772392242963,-5985.0,0.00014449,2]
[406974530,1772392242974,-1416.551,0.00014449,2]
[406974531,1772392242984,-2488.408,0.00014449,2]
[406974532,1772392242993,-4575.0,0.00014449,2]
[406974533,1772392243003,-1000.0,0.00014466,2]
[406974534,1772392243013,-299.99,0.00014504,2]
[406974535,1772392243022,-8712.46,0.00014504,2]
[406974536,1772392243033,-150.99,0.00014504,2]
[406974537,1772392243043,-9999.99,0.00014504,2]
[406974538,1772392243052,-999.99,0.00014504,2]
[406974539,1772392243061,-150.99,0.00014504,2]
[406974540,1772392243071,-9999.99,0.00014504,2]
[406974541,1772392243082,-9999.99,0.00014504,2]
[406974542,1772392243092,-151.0,0.0001455,2]
[406974543,1772392243103,-151.0,0.0001455,2]
[406974544,1772392243113,-151.0,0.0001455,2]
[406974545,1772392243126,-151.0,0.0001455,2]
[406974546,1772392243138,-151.0,0.0001455,2]
[406974547,1772392243148,-151.0,0.0001455,2]
[406974548,1772392243159,-1121.6642606,0.00014601,2]
[406974549,1772392243169,-433.0,0.00014683,2]
[406974550,1772392243179,-200.0,0.00014685,2]
[406974551,1772392243190,-685.39688456,0.00014694,2]
[406974552,1772392243200,-201.93286099,0.00014694,2]
[406974553,1772392243210,-298.26089446,0.00014694,2]
[406974554,1772392243219,-4065.91226816,0.00014714,7]
[406974555,1772392243228,-256.12,0.00014749,2]
[406974556,1772392243237,-1146.99550728,0.00014758,2]
[406974557,1772392243248,-17924.78435463,0.00014846,2]
[406974558,1772392243260,-150.0,0.00014846,2]
[406974559,1772392243270,-150.0,0.00014846,2]
[406974560,1772392243279,-150.0,0.00014846,2]
[406974561,1772392243288,-150.0,0.00014846,2]
[406974562,1772392243298,-150.0,0.00014846,2]
[406974563,1772392243308,-150.0,0.00014846,2]
[406974564,1772392243318,-150.0,0.00014846,2]
[406974565,1772392243328,-150.0,0.00014846,2]
[406974566,1772392243339,-1054.484,0.00014846,2]
[406974567,1772392243348,-619.0,0.00014846,2]
[406974568,1772392243358,-3500.0,0.00014846,2]
[406974569,1772392243368,-1340.0,0.00014846,2]
[406974570,1772392243377,-150.0,0.00014846,2]
[406974571,1772392243387,-1278.0,0.00014846,2]
[406974572,1772392243397,-151.0,0.00014873,2]
[406974573,1772392243407,-151.0,0.00014873,2]
[406974574,1772392243417,-327.0,0.00014873,2]
[406974575,1772392243427,-2000.0,0.000149,5]
[406974576,1772392243436,-666.0,0.00014901,2]
[406974577,1772392243446,-93545.2604399,0.00014902,2]
[406974578,1772392243456,-223.14,0.00014925,2]
[406974579,1772392243466,-250.2771261,0.00014994,2]
[406974580,1772392243475,-322.0,0.00015,2]
[406974581,1772392243485,-1551.0,0.00015,2]
[406974582,1772392243494,-250.0,0.00015,2]
[406974583,1772392243503,-169.5420016,0.00015016,2]
[406974584,1772392243513,-293.131948,0.00015068,2]
[406974585,1772392243522,-293.131948,0.00015068,2]
[406974586,1772392243531,-293.131948,0.00015068,2]
[406974587,1772392243540,-293.131948,0.00015068,2]
[406974588,1772392243549,-293.131948,0.00015068,2]
[406974589,1772392243559,-293.131948,0.00015068,2]
[406974590,1772392243568,-293.131948,0.00015068,2]
[406974591,1772392243578,-293.131948,0.00015068,2]
[406974592,1772392243587,-900.0,0.00015068,2]
[406974593,1772392243598,-1600.0,0.00015147,2]
[406974594,1772392243608,-325.58915867,0.00015151,2]
[406974595,1772392243618,-200.0,0.00015233,2]
[406974596,1772392243629,-599.60298507,0.00015241,2]
[406974597,1772392243638,-209.40437684,0.00015242,2]
[406974598,1772392243648,-309.29654756,0.00015242,2]
[406974599,1772392243658,-166.68,0.00015249,2]
[406974600,1772392243667,-474.8970201,0.00015283,2]
[406974601,1772392243677,-2940.96887375,0.00015283,2]
[406974602,1772392243687,-20872.768943,0.00015362,2]
[406974603,1772392243697,-500.0,0.00015392,2]
[406974604,1772392243706,-500.0,0.00015392,2]
[406974605,1772392243715,-500.0,0.00015392,2]
[406974606,1772392243725,-256.12,0.00015419,2]
[406974607,1772392243734,-155.0,0.00015431,2]
[406974608,1772392243744,-217.98521603,0.00015431,2]
[406974609,1772392243754,-8742.67599942,0.00015456,2]
[406974610,1772392243763,-17924.78435463,0.00015456,2]
[406974611,1772392243771,-1625.3616743,0.0001549,2]
[406974612,1772392243781,-280.47,0.00015535,2]
[406974613,1772392243791,-1146.99550728,0.00015544,2]
[406974614,1772392243800,-717.79777813,0.00015749,2]
[406974615,1772392243809,-200.0,0.00015781,2]
[406974616,1772392243819,-217.15233878,0.0001579,2]
[406974617,1772392243829,-320.74051982,0.0001579,2]
[406974618,1772392243838,-50000.0,0.0001579,2]
[406974619,1772392243847,-151.0,0.0001579,2]
[406974620,1772392243856,-786.716127,0.0001579,2]
[406974621,1772392243867,-786.716127,0.0001579,2]
[406974622,1772392243880,-786.716127,0.0001579,2]
[406974623,1772392243889,-786.716127,0.0001579,2]
[406974624,1772392243899,-668.216594,0.0001579,2]
[406974625,1772392243909,-668.216594,0.0001579,2]
[406974626,1772392243920,-668.216594,0.0001579,2]
[406974627,1772392243929,-668.216594,0.0001579,2]
[406974628,1772392243939,-151.0,0.0001579,2]
[406974629,1772392243950,-151.0,0.0001579,2]
[406974630,1772392243960,-156.704488,0.0001579,2]
[406974631,1772392243970,-293.131948,0.0001579,2]
[406974632,1772392243979,-293.131948,0.0001579,2]
[406974633,1772392243989,-293.131948,0.0001579,2]
[406974634,1772392243998,-293.131948,0.0001579,2]
[406974635,1772392244008,-150.0,0.000159,2]
[406974636,1772392244017,-150.0,0.000159,2]
[406974637,1772392244027,-150.0,0.000159,2]
[406974638,1772392244037,-1000.0,0.00015913,2]
[406974639,1772392244047,-736.0,0.00015972,2]
[406974640,1772392244056,-203.734684,0.00016,2]
[406974641,1772392244066,-8742.67599942,0.00016067,2]
[406974642,1772392244076,-17924.78435463,0.00016067,2]
[406974643,1772392244086,-1600.0,0.00016082,2]
[406974644,1772392244095,-600.0,0.00016082,2]
[406974645,1772392244105,-256.12,0.00016089,2]
[406974646,1772392244114,-500.0,0.00016093,2]
[406974647,1772392244124,-500.0,0.00016093,2]
[406974648,1772392244133,-500.0,0.00016093,2]
[406974649,1772392244142,-160.0,0.00016132,2]
[406974650,1772392244152,-174.09452548,0.00016132,2]
[406974651,1772392244163,-327.0,0.00016149,2]
[406974652,1772392244174,-800.0,0.000162,2]
[406974653,1772392244183,-800.0,0.000162,2]
[406974654,1772392244193,-800.0,0.000162,2]
[406974655,1772392244203,-800.0,0.000162,2]
[406974656,1772392244212,-800.0,0.000162,2]
[406974657,1772392244222,-800.0,0.000162,2]
[406974658,1772392244231,-800.0,0.000162,2]
[406974659,1772392244241,-800.0,0.000162,2]
[406974660,1772392244252,-800.0,0.000162,2]
[406974661,1772392244264,-200.0,0.000162,2]
[406974662,1772392244274,-200.0,0.000162,2]
[406974663,1772392244285,-200.0,0.000162,2]
[406974664,1772392244295,-243.0,0.000162,2]
[406974665,1772392244305,-800.0,0.000162,2]
[406974666,1772392244314,-800.0,0.000162,2]
[406974667,1772392244323,-800.0,0.000162,2]
[406974668,1772392244332,-800.0,0.000162,2]
[406974669,1772392244343,-800.0,0.000162,2]
[406974670,1772392244352,-800.0,0.000162,2]
[406974671,1772392244361,-800.0,0.000162,2]
[406974672,1772392244371,-800.0,0.000162,2]
[406974673,1772392244380,-800.0,0.000162,2]
[406974674,1772392244389,-800.0,0.000162,2]
[406974675,1772392244399,-800.0,0.000162,2]
[406974676,1772392244408,-800.0,0.000162,2]
[406974677,1772392244417,-800.0,0.000162,2]
[406974678,1772392244426,-800.0,0.000162,2]
[406974679,1772392244436,-800.0,0.000162,2]
[406974680,1772392244446,-5000.00589757,0.000162,5]
[406974681,1772392244455,-223.14,0.00016202,2]
[406974682,1772392244465,-1029.68,0.00016322,2]
[406974683,1772392244474,-200.0,0.00016329,2]
[406974684,1772392244483,-1146.99550728,0.00016329,2]
[406974685,1772392244492,-225.18697532,0.00016338,2]
[406974686,1772392244502,-285.15741655,0.00016338,2]
[406974687,1772392244511,-500.0,0.00016356,2]
[406974688,1772392244520,-845.0,0.000164,2]
[406974689,1772392244530,-528.85,0.0001643,2]
[406974690,1772392244539,-500.0,0.0001643,2]
[406974691,1772392244549,-500.0,0.0001643,2]
[406974692,1772392244559,-500.0,0.0001643,2]
[406974693,1772392244568,-166.048908,0.0001643,2]
[406974694,1772392244577,-166.048908,0.0001643,2]
[406974695,1772392244587,-166.048908,0.0001643,2]
[406974696,1772392244597,-166.048908,0.0001643,2]
[406974697,1772392244606,-151.0,0.00016438,2]
[406974698,1772392244616,-151.0,0.00016438,2]
[406974699,1772392244625,-151.0,0.00016438,2]
[406974700,1772392244635,-454.0,0.00016438,2]
[406974701,1772392244644,-151.0,0.00016438,2]
[406974702,1772392244750,-151.577509,0.00016438,2]
[406974703,1772392244761,-151.0,0.00016438,2]
[406974704,1772392244771,-151.0,0.00016438,2]
[406974705,1772392244782,-201.691028,0.00016438,2]
[406974706,1772392244791,-589.59396,0.00016438,2]
[406974707,1772392244801,-589.59396,0.00016438,2]
[406974708,1772392244811,-589.59396,0.00016438,2]
[406974709,1772392244820,-589.59396,0.00016438,2]
[406974710,1772392244829,-589.59396,0.00016438,2]
[406974711,1772392244839,-589.59396,0.00016438,2]
[406974712,1772392244849,-589.59396,0.00016438,2]
[406974713,1772392244859,-589.59396,0.00016438,2]
[406974714,1772392244870,-151.0,0.00016438,2]
[406974715,1772392244881,-151.0,0.00016438,2]
[406974716,1772392244891,-151.0,0.00016438,2]
[406974717,1772392244900,-151.0,0.00016438,2]
[406974718,1772392244911,-151.0,0.00016438,2]
[406974719,1772392244921,-252.317513,0.00016438,2]
[406974720,1772392244930,-252.317513,0.00016438,2]
[406974721,1772392244941,-252.317513,0.00016438,2]
[406974722,1772392244951,-252.317513,0.00016438,2]
[406974723,1772392244961,-252.317513,0.00016438,2]
[406974724,1772392244970,-252.317513,0.00016438,2]
[406974725,1772392244980,-252.317513,0.00016438,2]
[406974726,1772392244990,-252.317513,0.00016438,2]
[406974727,1772392244999,-2000.0,0.00016438,2]
[406974728,1772392245009,-900.0,0.00016438,2]
[406974729,1772392245018,-151.0,0.00016439,2]
[406974730,1772392245027,-589.59396,0.00016439,2]
[406974731,1772392245036,-589.59396,0.00016439,2]
[406974732,1772392245046,-589.59396,0.00016439,2]
[406974733,1772392245055,-589.59396,0.00016439,2]
[406974734,1772392245064,-454.0,0.00016493,2]
[406974735,1772392245074,-151.0,0.00016493,2]
[406974736,1772392245084,-151.0,0.00016493,2]
[406974737,1772392245095,-157.067351,0.00016493,2]
[406974738,1772392245105,-454.0,0.00016548,2]
[406974739,1772392245114,-153.04785948,0.00016586,2]
[406974740,1772392245123,-1289.755,0.00016587,2]
[406974741,1772392245132,-154.716,0.00016587,2]
[406974742,1772392245141,-168.0,0.0001659,2]
[406974743,1772392245151,-454.0,0.00016602,2]
[406974744,1772392245160,-168.0,0.00016609,2]
[406974745,1772392245170,-454.0,0.00016657,2]
[406974746,1772392245181,-1600.0,0.00016662,2]
[406974747,1772392245191,-8742.67599942,0.00016678,2]
[406974748,1772392245201,-17924.78435463,0.00016678,2]
[406974749,1772392245211,-8755.205004,0.00016687,7]
[406974750,1772392245220,-168.0,0.00016705,2]
[406974751,1772392245230,-454.0,0.00016712,2]
[406974752,1772392245240,-166.1,0.00016712,2]
[406974753,1772392245251,-168.0,0.00016751,2]
[406974754,1772392245263,-256.12,0.0001676,2]
[406974755,1772392245272,-454.0,0.00016767,2]
[406974756,1772392245281,-1798.562057,0.00016802,7]
[406974757,1772392245291,-1625.3616743,0.00016807,2]
[406974758,1772392245303,-454.0,0.00016822,2]
[406974759,1772392245314,-151.0,0.00016876,2]
[406974760,1772392245324,-151.0,0.00016876,2]
[406974761,1772392245335,-294.694375,0.00016876,2]
[406974762,1772392245346,-252.317513,0.00016876,2]
[406974763,1772392245355,-252.317513,0.00016876,2]
[406974764,1772392245364,-252.317513,0.00016876,2]
[406974765,1772392245374,-252.317513,0.00016876,2]
[406974766,1772392245383,-454.0,0.00016876,2]
[406974767,1772392245393,-200.0,0.00016877,2]
[406974768,1772392245403,-233.51889341,0.00016886,2]
[406974769,1772392245413,-168.0,0.00016931,2]
[406974770,1772392245423,-454.0,0.00016931,2]
[406974771,1772392245432,-500.18195565,0.00016973,2]
[406974772,1772392245442,-500.0,0.00016973,2]
[406974773,1772392245451,-500.0,0.00016973,2]
[406974774,1772392245461,-563.45104318,0.00016973,2]
[406974775,1772392245470,-500.0,0.00016973,2]
[406974776,1772392245480,-500.0,0.00016973,2]
[406974777,1772392245490,-500.0,0.00016973,2]
[406974778,1772392245499,-151.0,0.00016973,2]
[406974779,1772392245509,-151.0,0.00016973,2]
[406974780,1772392245519,-454.0,0.00016986,2]
[406974781,1772392245528,-151.0,0.00016986,2]
[406974782,1772392245538,-152.0,0.00016988,3]
[406974783,1772392245547,-21235.9745995,0.00017,2]
[406974784,1772392245556,-228.53277993,0.00017,5]
[406974785,1772392245565,-300.0,0.00017,2]
[406974786,1772392245575,-454.0,0.00017041,2]
[406974787,1772392245585,-168.0,0.00017063,2]
[406974788,1772392245594,-675.0,0.00017072,2]
[406974789,1772392245604,-150.0,0.00017072,2]
[406974790,1772392245613,-150.0,0.00017072,2]
[406974791,1772392245623,-150.0,0.00017072,2]
[406974792,1772392245631,-150.0,0.00017072,2]
[406974793,1772392245641,-150.0,0.00017072,2]
[406974794,1772392245650,-150.0,0.00017072,2]
[406974795,1772392245659,-257.0,0.00017072,2]
[406974796,1772392245669,-454.0,0.00017096,2]
[406974797,1772392245679,-150.0,0.0001711,5]
[406974798,1772392245687,-1146.99550728,0.00017115,2]
[406974799,1772392245697,-557.0,0.0001715,2]
[406974800,1772392245706,-150.0,0.0001715,2]
[406974801,1772392245716,-150.0,0.0001715,2]
[406974802,1772392245726,-286.0,0.0001715,2]
[406974803,1772392245735,-454.0,0.0001715,2]
[406974804,1772392245745,-454.0,0.00017205,2]
[406974805,1772392245755,-454.0,0.0001726,2]
[406974806,1772392245765,-151.0,0.0001726,2]
[406974807,1772392245774,-183.0,0.00017283,30]
[406974809,1772392245784,-8742.67599942,0.00017289,2]
[406974810,1772392245794,-17924.78435463,0.00017289,2]
[406974811,1772392245805,-454.0,0.00017315,2]
[406974812,1772392245819,-150.0,0.00017357,2]
[406974813,1772392245829,-1000.0,0.0001736,2]
[406974814,1772392245839,-373.0,0.00017362,2]
[406974815,1772392245849,-454.0,0.0001737,2]
[406974816,1772392245858,-397.0,0.00017374,2]
[406974817,1772392245871,-454.0,0.00017424,2]
[406974818,1772392245882,-150.0,0.00017428,2]
[406974819,1772392245891,-256.12,0.0001743,2]
[406974820,1772392245901,-242.15909246,0.00017434,2]
[406974821,1772392245911,-921.0,0.00017449,2]
[406974822,1772392245922,-1211.0,0.00017449,2]
[406974823,1772392245931,-5985.0,0.00017449,2]
[406974824,1772392245941,-1323.0,0.00017449,2]
[406974825,1772392245952,-2457.0,0.00017449,2]
[406974826,1772392245961,-1600.0,0.00017452,7]
[406974827,1772392245971,-600.0,0.00017452,7]
[406974828,1772392245980,-454.0,0.00017479,2]
[406974829,1772392245990,-717.36257546,0.00017521,2]
[406974831,1772392245999,-500.0,0.00017521,2]
[406974832,1772392246008,-168.0,0.00017523,2]